[Event "Titled Tuesday Blitz November 22 Late 2022"]
[White "Deac, Bogdan-Daniel"]
[Black "Jobava, Baadur"]
[WhiteFideId "1226380"]
[BlackFideId "13601520"]
[WhiteElo "2648"]
[BlackElo "2582"]
[Result "1/2-1/2"]
[Round "06"]
[TimeControl "180+1"]
[Date "2022.11.22"]
[WhiteClock "0:00:08"]
[BlackClock "0:00:07"]

1. e4 {[%clk 0:03:00]}  e5 {[%clk 0:02:49]} 2. Nf3 {[%clk 0:03:00]}  Nf6 {[%clk 0:02:49]} 3. Nxe5 {[%clk 0:03:01]}  d6 {[%clk 0:02:49]} 4. Nd3 {[%clk 0:03:01]}  Nxe4 {[%clk 0:02:49]} 5. Qe2 {[%clk 0:03:02]}  Qe7 {[%clk 0:02:49]} 6. Nf4 {[%clk 0:03:02]}  Nf6 {[%clk 0:02:48]} 7. d4 {[%clk 0:03:01]}  Qxe2+ {[%clk 0:02:49]} 8. Bxe2 {[%clk 0:03:01]}  d5 {[%clk 0:02:48]} 9. f3 {[%clk 0:02:59]}  Bd6 {[%clk 0:02:47]} 10. g4 {[%clk 0:02:55]}  c6 {[%clk 0:02:47]} 11. h4 {[%clk 0:02:52]}  O-O {[%clk 0:02:45]} 12. h5 {[%clk 0:02:47]}  h6 {[%clk 0:02:40]} 13. c3 {[%clk 0:02:40]}  Re8 {[%clk 0:02:39]} 14. Kf2 {[%clk 0:02:40]}  Nbd7 {[%clk 0:02:31]} 15. Na3 {[%clk 0:02:31]}  Nh7 {[%clk 0:02:26]} 16. Nc2 {[%clk 0:02:23]}  Ndf8 {[%clk 0:02:24]} 17. Nh3 {[%clk 0:02:10]}  Bd7 {[%clk 0:02:20]} 18. Bf4 {[%clk 0:02:03]}  Bxf4 {[%clk 0:02:17]} 19. Nxf4 {[%clk 0:02:04]}  Re7 {[%clk 0:02:16]} 20. Bd3 {[%clk 0:01:57]}  Rae8 {[%clk 0:02:16]} 21. Rae1 {[%clk 0:01:50]}  Ng5 {[%clk 0:02:15]} 22. Rxe7 {[%clk 0:01:44]}  Rxe7 {[%clk 0:02:16]} 23. Ne3 {[%clk 0:01:44]}  Re8 {[%clk 0:02:10]} 24. a4 {[%clk 0:01:29]}  Nfe6 {[%clk 0:02:04]} 25. Nxe6 {[%clk 0:01:15]}  Nxe6 {[%clk 0:02:05]} 26. Bf5 {[%clk 0:01:15]}  Kf8 {[%clk 0:01:58]} 27. a5 {[%clk 0:01:14]}  Ke7 {[%clk 0:01:56]} 28. Re1 {[%clk 0:01:03]}  Kd8 {[%clk 0:01:57]} 29. Bxe6 {[%clk 0:01:02]}  Bxe6 {[%clk 0:01:55]} 30. Rg1 {[%clk 0:00:39]}  Ke7 {[%clk 0:01:46]} 31. Ng2 {[%clk 0:00:28]}  g5 {[%clk 0:01:15]} 32. hxg6 {[%clk 0:00:27]}  fxg6 {[%clk 0:01:16]} 33. Rh1 {[%clk 0:00:25]}  Rh8 {[%clk 0:01:16]} 34. Nf4 {[%clk 0:00:25]}  Bf7 {[%clk 0:01:13]} 35. Nd3 {[%clk 0:00:25]}  h5 {[%clk 0:01:08]} 36. Ne5 {[%clk 0:00:24]}  Be8 {[%clk 0:01:08]} 37. f4 {[%clk 0:00:22]}  Kf6 {[%clk 0:00:59]} 38. Kg3 {[%clk 0:00:21]}  Rh7 {[%clk 0:00:44]} 39. Re1 {[%clk 0:00:20]}  Rh8 {[%clk 0:00:41]} 40. g5+ {[%clk 0:00:12]}  Kg7 {[%clk 0:00:41]} 41. Nf3 {[%clk 0:00:12]}  Kf7 {[%clk 0:00:36]} 42. Ne5+ {[%clk 0:00:09]}  Kf8 {[%clk 0:00:36]} 43. a6 {[%clk 0:00:10]}  b6 {[%clk 0:00:31]} 44. b4 {[%clk 0:00:09]}  Rh7 {[%clk 0:00:30]} 45. Kh4 {[%clk 0:00:08]}  Rc7 {[%clk 0:00:20]} 46. Rf1 {[%clk 0:00:07]}  c5 {[%clk 0:00:20]} 47. bxc5 {[%clk 0:00:06]}  bxc5 {[%clk 0:00:21]} 48. f5 {[%clk 0:00:07]}  gxf5 {[%clk 0:00:17]} 49. Rxf5+ {[%clk 0:00:08]}  Kg7 {[%clk 0:00:18]} 50. g6 {[%clk 0:00:08]}  cxd4 {[%clk 0:00:17]} 51. cxd4 {[%clk 0:00:09]}  Rc1 {[%clk 0:00:15]} 52. Rxh5 {[%clk 0:00:08]}  Rd1 {[%clk 0:00:12]} 53. Kg5 {[%clk 0:00:05]}  Rg1+ {[%clk 0:00:09]} 54. Kf5 {[%clk 0:00:05]}  Rxg6 {[%clk 0:00:07]} 55. Rg5 {[%clk 0:00:04]}  Rxg5+ {[%clk 0:00:06]} 56. Kxg5 {[%clk 0:00:05]}  Bb5 {[%clk 0:00:07]} 57. Kf5 {[%clk 0:00:05]}  Bxa6 {[%clk 0:00:07]} 58. Nc6 {[%clk 0:00:05]}  Bd3+ {[%clk 0:00:07]} 59. Ke5 {[%clk 0:00:05]}  a6 {[%clk 0:00:06]} 60. Kxd5 {[%clk 0:00:05]}  Kf8 {[%clk 0:00:06]} 61. Kd6 {[%clk 0:00:04]}  Bc4 {[%clk 0:00:06]} 62. Kc5 {[%clk 0:00:05]}  Bb3 {[%clk 0:00:04]} 63. Na5 {[%clk 0:00:05]}  Ba2 {[%clk 0:00:04]} 64. Nc4 {[%clk 0:00:04]}  Bxc4 {[%clk 0:00:04]} 65. Kxc4 {[%clk 0:00:05]}  Ke7 {[%clk 0:00:04]} 66. Kc5 {[%clk 0:00:06]}  Kd7 {[%clk 0:00:05]} 67. Kb6 {[%clk 0:00:07]}  Kd6 {[%clk 0:00:05]} 68. Kxa6 {[%clk 0:00:07]}  Kd5 {[%clk 0:00:06]} 69. Kb5 {[%clk 0:00:08]}  Kxd4 {[%clk 0:00:07]} 1/2-1/2


[Site "https://www.chess.com"]

[Event "Titled Tuesday Blitz November 22 Late 2022"]
[White "Dudzinski, Pawel"]
[Black "Jeet, Jain"]
[WhiteFideId "1117890"]
[BlackFideId "5073022"]
[WhiteElo "2086"]
[BlackElo "2067"]
[Result "0-1"]
[Round "06"]
[TimeControl "180+1"]
[Date "2022.11.23"]
[WhiteClock "0:00:04"]
[BlackClock "0:00:37"]

1. e4 {[%clk 0:02:56]}  c6 {[%clk 0:03:00]} 2. d4 {[%clk 0:02:56]}  d5 {[%clk 0:03:00]} 3. exd5 {[%clk 0:02:57]}  cxd5 {[%clk 0:03:01]} 4. Bd3 {[%clk 0:02:58]}  Nf6 {[%clk 0:03:01]} 5. h3 {[%clk 0:02:57]}  Nc6 {[%clk 0:03:01]} 6. c3 {[%clk 0:02:58]}  g6 {[%clk 0:02:59]} 7. Nf3 {[%clk 0:02:57]}  Bf5 {[%clk 0:02:59]} 8. O-O {[%clk 0:02:48]}  Bxd3 {[%clk 0:02:59]} 9. Qxd3 {[%clk 0:02:49]}  Bg7 {[%clk 0:02:59]} 10. Re1 {[%clk 0:02:50]}  O-O {[%clk 0:02:59]} 11. Bf4 {[%clk 0:02:49]}  Ne4 {[%clk 0:02:57]} 12. Nbd2 {[%clk 0:02:47]}  f5 {[%clk 0:02:56]} 13. Ne5 {[%clk 0:02:35]}  Nxe5 {[%clk 0:02:54]} 14. Bxe5 {[%clk 0:02:34]}  Bxe5 {[%clk 0:02:49]} 15. dxe5 {[%clk 0:02:35]}  e6 {[%clk 0:02:47]} 16. Nb3 {[%clk 0:02:17]}  Qc7 {[%clk 0:02:41]} 17. f3 {[%clk 0:02:16]}  Ng3 {[%clk 0:02:34]} 18. Nd4 {[%clk 0:02:11]}  Rae8 {[%clk 0:02:34]} 19. Kh2 {[%clk 0:02:06]}  f4 {[%clk 0:02:34]} 20. Nb5 {[%clk 0:01:53]}  Qe7 {[%clk 0:02:30]} 21. Nd6 {[%clk 0:01:53]}  Rb8 {[%clk 0:02:29]} 22. c4 {[%clk 0:01:47]}  dxc4 {[%clk 0:02:23]} 23. Qxc4 {[%clk 0:01:47]}  Nf5 {[%clk 0:02:10]} 24. Qxf4 {[%clk 0:01:41]}  Nxd6 {[%clk 0:02:10]} 25. exd6 {[%clk 0:01:41]}  Rxf4 {[%clk 0:02:11]} 26. dxe7 {[%clk 0:01:41]}  Kf7 {[%clk 0:02:11]} 27. Rac1 {[%clk 0:01:38]}  Re8 {[%clk 0:02:05]} 28. Red1 {[%clk 0:00:54]}  Rxe7 {[%clk 0:02:04]} 29. Rd8 {[%clk 0:00:52]}  Rb4 {[%clk 0:02:02]} 30. b3 {[%clk 0:00:51]}  e5 {[%clk 0:01:56]} 31. Rcc8 {[%clk 0:00:48]}  e4 {[%clk 0:01:54]} 32. Rf8+ {[%clk 0:00:46]}  Ke6 {[%clk 0:01:54]} 33. fxe4 {[%clk 0:00:42]}  Rxe4 {[%clk 0:01:54]} 34. Rfe8 {[%clk 0:00:38]}  Rxe8 {[%clk 0:01:43]} 35. Rxe8+ {[%clk 0:00:38]}  Kd5 {[%clk 0:01:43]} 36. Rd8+ {[%clk 0:00:28]}  Kc6 {[%clk 0:01:40]} 37. Rc8+ {[%clk 0:00:22]}  Kb6 {[%clk 0:01:37]} 38. Rh8 {[%clk 0:00:21]}  Re7 {[%clk 0:01:36]} 39. Kg3 {[%clk 0:00:22]}  Kb5 {[%clk 0:01:36]} 40. a3 {[%clk 0:00:16]}  Re3+ {[%clk 0:01:08]} 41. Kf4 {[%clk 0:00:16]}  Rxb3 {[%clk 0:01:07]} 42. Rxh7 {[%clk 0:00:16]}  Ka4 {[%clk 0:01:02]} 43. g4 {[%clk 0:00:13]}  Kxa3 {[%clk 0:01:00]} 44. h4 {[%clk 0:00:12]}  a5 {[%clk 0:00:58]} 45. Kg5 {[%clk 0:00:08]}  Rb6 {[%clk 0:00:54]} 46. Rh8 {[%clk 0:00:05]}  a4 {[%clk 0:00:53]} 47. Rd8 {[%clk 0:00:02]}  Rc6 {[%clk 0:00:48]} 48. Rd7 {[%clk 0:00:01]}  b5 {[%clk 0:00:46]} 49. h5 {[%clk 0:00:02]}  gxh5 {[%clk 0:00:45]} 50. gxh5 {[%clk 0:00:03]}  b4 {[%clk 0:00:43]} 51. h6 {[%clk 0:00:03]}  b3 {[%clk 0:00:41]} 52. h7 {[%clk 0:00:03]}  Rc8 {[%clk 0:00:41]} 53. Rg7 {[%clk 0:00:02]}  Rh8 {[%clk 0:00:40]} 54. Kh6 {[%clk 0:00:02]}  b2 {[%clk 0:00:38]} 55. Rb7 {[%clk 0:00:03]}  Ka2 {[%clk 0:00:36]} 56. Kg7 {[%clk 0:00:03]}  Rxh7+ {[%clk 0:00:36]} 57. Kxh7 {[%clk 0:00:03]}  b1=Q+ {[%clk 0:00:36]} 58. Rxb1 {[%clk 0:00:04]}  Kxb1 {[%clk 0:00:37]} 0-1


[Site "https://www.chess.com"]

[Event "Titled Tuesday Blitz November 22 Late 2022"]
[White "Dylag, Emilia"]
[Black "Pakleza, Zbigniew"]
[WhiteFideId "21805172"]
[BlackFideId "1119290"]
[WhiteElo "1878"]
[BlackElo "2411"]
[Result "0-1"]
[Round "06"]
[TimeControl "180+1"]
[Date "2022.11.22"]
[WhiteClock "0:00:02"]
[BlackClock "0:00:15"]

1. d4 {[%clk 0:03:00]}  d6 {[%clk 0:02:59]} 2. Nf3 {[%clk 0:02:59]}  Bg4 {[%clk 0:02:58]} 3. e4 {[%clk 0:02:52]}  Nf6 {[%clk 0:02:58]} 4. Bd3 {[%clk 0:02:51]}  e6 {[%clk 0:02:58]} 5. Nbd2 {[%clk 0:02:50]}  Be7 {[%clk 0:02:58]} 6. O-O {[%clk 0:02:50]}  O-O {[%clk 0:02:58]} 7. h3 {[%clk 0:02:50]}  Bh5 {[%clk 0:02:59]} 8. Re1 {[%clk 0:02:47]}  d5 {[%clk 0:02:56]} 9. e5 {[%clk 0:02:45]}  Nfd7 {[%clk 0:02:56]} 10. Qe2 {[%clk 0:02:38]}  c5 {[%clk 0:02:55]} 11. c3 {[%clk 0:02:38]}  Nc6 {[%clk 0:02:55]} 12. g4 {[%clk 0:02:20]}  Bg6 {[%clk 0:02:55]} 13. Nf1 {[%clk 0:02:20]}  Rc8 {[%clk 0:02:51]} 14. Bd2 {[%clk 0:02:11]}  Qb6 {[%clk 0:02:44]} 15. Be3 {[%clk 0:01:58]}  cxd4 {[%clk 0:02:40]} 16. cxd4 {[%clk 0:01:56]}  Bxd3 {[%clk 0:02:36]} 17. Qxd3 {[%clk 0:01:56]}  Nb4 {[%clk 0:02:36]} 18. Qe2 {[%clk 0:01:21]}  Nc2 {[%clk 0:02:34]} 19. Ng3 {[%clk 0:01:19]}  Nxa1 {[%clk 0:02:25]} 20. Rxa1 {[%clk 0:01:20]}  Qa6 {[%clk 0:02:00]} 21. Qd2 {[%clk 0:01:15]}  Qc4 {[%clk 0:01:51]} 22. Nh5 {[%clk 0:00:57]}  Qc2 {[%clk 0:01:42]} 23. Qe1 {[%clk 0:00:54]}  Rc6 {[%clk 0:01:10]} 24. Rc1 {[%clk 0:00:42]}  Qe4 {[%clk 0:01:04]} 25. Nd2 {[%clk 0:00:29]}  Qd3 {[%clk 0:01:04]} 26. Rd1 {[%clk 0:00:23]}  Rfc8 {[%clk 0:00:54]} 27. Nf3 {[%clk 0:00:20]}  Qe4 {[%clk 0:00:50]} 28. Nd2 {[%clk 0:00:18]}  Qc2 {[%clk 0:00:51]} 29. Nf3 {[%clk 0:00:14]}  h6 {[%clk 0:00:30]} 30. Kh2 {[%clk 0:00:14]}  Nb6 {[%clk 0:00:25]} 31. Rc1 {[%clk 0:00:13]}  Qe4 {[%clk 0:00:25]} 32. Rxc6 {[%clk 0:00:09]}  Rxc6 {[%clk 0:00:25]} 33. Nd2 {[%clk 0:00:09]}  Qd3 {[%clk 0:00:24]} 34. Nf3 {[%clk 0:00:08]}  Nc4 {[%clk 0:00:23]} 35. g5 {[%clk 0:00:03]}  Nxe3 {[%clk 0:00:20]} 36. fxe3 {[%clk 0:00:04]}  Rc2+ {[%clk 0:00:19]} 37. Kh1 {[%clk 0:00:04]}  Qe4 {[%clk 0:00:17]} 38. Qg3 {[%clk 0:00:02]}  hxg5 {[%clk 0:00:16]} 39. h4 {[%clk 0:00:02]}  g4 {[%clk 0:00:15]} 0-1


[Site "https://www.chess.com"]

[Event "Titled Tuesday Blitz November 22 Late 2022"]
[White "Fedoseev, Vladimir"]
[Black "Banzea, Alexandru-Bogdan"]
[WhiteFideId "24130737"]
[BlackFideId "1232622"]
[WhiteElo "2726"]
[BlackElo "2294"]
[Result "1-0"]
[Round "06"]
[TimeControl "180+1"]
[Date "2022.11.22"]
[WhiteClock "0:00:30"]
[BlackClock "0:00:02"]

1. c4 {[%clk 0:02:59]}  Nf6 {[%clk 0:02:56]} 2. Nc3 {[%clk 0:02:58]}  g6 {[%clk 0:02:57]} 3. e4 {[%clk 0:02:57]}  d6 {[%clk 0:02:57]} 4. d4 {[%clk 0:02:57]}  Bg7 {[%clk 0:02:58]} 5. Be2 {[%clk 0:02:58]}  O-O {[%clk 0:02:56]} 6. Be3 {[%clk 0:02:58]}  e5 {[%clk 0:02:52]} 7. d5 {[%clk 0:02:58]}  Na6 {[%clk 0:02:48]} 8. Nf3 {[%clk 0:02:57]}  Ng4 {[%clk 0:02:44]} 9. Bg5 {[%clk 0:02:57]}  f6 {[%clk 0:02:44]} 10. Bh4 {[%clk 0:02:57]}  g5 {[%clk 0:02:44]} 11. Nd2 {[%clk 0:02:54]}  Nh6 {[%clk 0:02:35]} 12. Bg3 {[%clk 0:02:54]}  f5 {[%clk 0:02:28]} 13. h3 {[%clk 0:02:49]}  Nc5 {[%clk 0:02:22]} 14. f3 {[%clk 0:02:47]}  a5 {[%clk 0:02:09]} 15. Bf2 {[%clk 0:02:46]}  Bd7 {[%clk 0:01:53]} 16. g4 {[%clk 0:02:46]}  fxe4 {[%clk 0:01:49]} 17. Ndxe4 {[%clk 0:02:47]}  Nxe4 {[%clk 0:01:45]} 18. Nxe4 {[%clk 0:02:48]}  Rf4 {[%clk 0:01:43]} 19. Qc2 {[%clk 0:02:45]}  Nf7 {[%clk 0:01:18]} 20. h4 {[%clk 0:02:44]}  c6 {[%clk 0:01:07]} 21. hxg5 {[%clk 0:02:43]}  cxd5 {[%clk 0:01:07]} 22. cxd5 {[%clk 0:02:01]}  Rc8 {[%clk 0:01:06]} 23. Qd3 {[%clk 0:01:52]}  Nxg5 {[%clk 0:00:40]} 24. Nxg5 {[%clk 0:01:49]}  Qxg5 {[%clk 0:00:41]} 25. Qxh7+ {[%clk 0:01:49]}  Kf7 {[%clk 0:00:41]} 26. Rh5 {[%clk 0:01:34]}  Qg6 {[%clk 0:00:38]} 27. Qxg6+ {[%clk 0:01:35]}  Kxg6 {[%clk 0:00:39]} 28. Be3 {[%clk 0:01:34]}  Rb4 {[%clk 0:00:34]} 29. Bd3+ {[%clk 0:01:25]}  Kf7 {[%clk 0:00:23]} 30. Bf5 {[%clk 0:01:18]}  Bxf5 {[%clk 0:00:18]} 31. Rxf5+ {[%clk 0:01:19]}  Kg8 {[%clk 0:00:16]} 32. Rc1 {[%clk 0:01:16]}  Rxc1+ {[%clk 0:00:12]} 33. Bxc1 {[%clk 0:01:17]}  Rd4 {[%clk 0:00:11]} 34. g5 {[%clk 0:01:07]}  Rxd5 {[%clk 0:00:12]} 35. g6 {[%clk 0:01:07]}  Rd3 {[%clk 0:00:05]} 36. Ke2 {[%clk 0:01:06]}  e4 {[%clk 0:00:05]} 37. fxe4 {[%clk 0:01:02]}  Rg3 {[%clk 0:00:06]} 38. Rxa5 {[%clk 0:01:01]}  Rxg6 {[%clk 0:00:06]} 39. Rb5 {[%clk 0:01:01]}  Rg2+ {[%clk 0:00:05]} 40. Kd3 {[%clk 0:01:01]}  Rg3+ {[%clk 0:00:03]} 41. Kc4 {[%clk 0:01:01]}  Rg1 {[%clk 0:00:03]} 42. Bf4 {[%clk 0:01:01]}  Rg4 {[%clk 0:00:02]} 43. Bxd6 {[%clk 0:00:57]}  Rxe4+ {[%clk 0:00:03]} 44. Kb3 {[%clk 0:00:53]}  Re2 {[%clk 0:00:02]} 45. Ba3 {[%clk 0:00:52]}  Re3+ {[%clk 0:00:01]} 46. Kc2 {[%clk 0:00:51]}  Re2+ {[%clk 0:00:02]} 47. Kd3 {[%clk 0:00:51]}  Rg2 {[%clk 0:00:02]} 48. Rxb7 {[%clk 0:00:51]}  Rg3+ {[%clk 0:00:02]} 49. Kc4 {[%clk 0:00:51]}  Rg2 {[%clk 0:00:02]} 50. Kb3 {[%clk 0:00:52]}  Rg4 {[%clk 0:00:03]} 51. Bb4 {[%clk 0:00:51]}  Rg3+ {[%clk 0:00:03]} 52. Bc3 {[%clk 0:00:51]}  Bxc3 {[%clk 0:00:03]} 53. bxc3 {[%clk 0:00:52]}  Kf8 {[%clk 0:00:04]} 54. a4 {[%clk 0:00:53]}  Ke8 {[%clk 0:00:05]} 55. a5 {[%clk 0:00:53]}  Kd8 {[%clk 0:00:06]} 56. a6 {[%clk 0:00:54]}  Kc8 {[%clk 0:00:07]} 57. Rb5 {[%clk 0:00:47]}  Rg1 {[%clk 0:00:07]} 58. Kb4 {[%clk 0:00:41]}  Rb1+ {[%clk 0:00:07]} 59. Ka5 {[%clk 0:00:41]}  Ra1+ {[%clk 0:00:05]} 60. Kb6 {[%clk 0:00:41]}  Kb8 {[%clk 0:00:06]} 61. c4 {[%clk 0:00:41]}  Ka8 {[%clk 0:00:05]} 62. c5 {[%clk 0:00:42]}  Rxa6+ {[%clk 0:00:05]} 63. Kc7 {[%clk 0:00:40]}  Ra7+ {[%clk 0:00:05]} 64. Kd6 {[%clk 0:00:39]}  Ra1 {[%clk 0:00:04]} 65. c6 {[%clk 0:00:38]}  Rd1+ {[%clk 0:00:03]} 66. Rd5 {[%clk 0:00:36]}  Rc1 {[%clk 0:00:02]} 67. Kd7 {[%clk 0:00:35]}  Kb8 {[%clk 0:00:02]} 68. Rb5+ {[%clk 0:00:35]}  Ka7 {[%clk 0:00:03]} 69. Kc7 {[%clk 0:00:30]}  Rc2 {[%clk 0:00:02]} 70. Ra5# {[%clk 0:00:30]} 1-0


[Site "https://www.chess.com"]

[Event "Titled Tuesday Blitz November 22 Late 2022"]
[White "Feng, Eric"]
[Black "Boyer, Mahel"]
[WhiteFideId "30952590"]
[BlackFideId "45102422"]
[WhiteElo "1785"]
[BlackElo "2454"]
[Result "0-1"]
[Round "06"]
[TimeControl "180+1"]
[Date "2022.11.23"]
[WhiteClock "0:00:39"]
[BlackClock "0:00:31"]

1. d4 {[%clk 0:02:59]}  Nf6 {[%clk 0:02:53]} 2. c4 {[%clk 0:02:59]}  Nc6 {[%clk 0:02:52]} 3. Nf3 {[%clk 0:02:56]}  Nb8 {[%clk 0:02:53]} 4. g3 {[%clk 0:02:56]}  Ng8 {[%clk 0:02:54]} 5. Bg2 {[%clk 0:02:56]}  g6 {[%clk 0:02:53]} 6. O-O {[%clk 0:02:56]}  Bg7 {[%clk 0:02:54]} 7. Nc3 {[%clk 0:02:56]}  c5 {[%clk 0:02:54]} 8. d5 {[%clk 0:02:57]}  d6 {[%clk 0:02:54]} 9. e4 {[%clk 0:02:57]}  Nf6 {[%clk 0:02:54]} 10. Be3 {[%clk 0:02:55]}  O-O {[%clk 0:02:54]} 11. Ne1 {[%clk 0:02:56]}  Ng4 {[%clk 0:02:53]} 12. Bd2 {[%clk 0:02:56]}  a6 {[%clk 0:02:52]} 13. h3 {[%clk 0:02:56]}  Ne5 {[%clk 0:02:52]} 14. Qe2 {[%clk 0:02:57]}  b5 {[%clk 0:02:52]} 15. cxb5 {[%clk 0:02:56]}  axb5 {[%clk 0:02:53]} 16. Nxb5 {[%clk 0:02:57]}  Ba6 {[%clk 0:02:53]} 17. a4 {[%clk 0:02:57]}  c4 {[%clk 0:02:48]} 18. Nf3 {[%clk 0:02:45]}  Nd3 {[%clk 0:02:48]} 19. Bc3 {[%clk 0:02:45]}  Bxb5 {[%clk 0:02:47]} 20. axb5 {[%clk 0:02:45]}  Rxa1 {[%clk 0:02:47]} 21. Rxa1 {[%clk 0:02:46]}  Qb6 {[%clk 0:02:44]} 22. Bxg7 {[%clk 0:02:44]}  Kxg7 {[%clk 0:02:45]} 23. Qc2 {[%clk 0:02:12]}  Qxb5 {[%clk 0:02:29]} 24. Rb1 {[%clk 0:02:11]}  Na6 {[%clk 0:02:24]} 25. Nd2 {[%clk 0:02:09]}  Rc8 {[%clk 0:02:22]} 26. Bf1 {[%clk 0:02:06]}  Nab4 {[%clk 0:02:20]} 27. Qc3+ {[%clk 0:02:06]}  f6 {[%clk 0:02:20]} 28. b3 {[%clk 0:01:39]}  Qc5 {[%clk 0:02:04]} 29. Bxd3 {[%clk 0:01:39]}  cxd3 {[%clk 0:02:05]} 30. Qxc5 {[%clk 0:01:34]}  Rxc5 {[%clk 0:02:05]} 31. Nc4 {[%clk 0:01:35]}  f5 {[%clk 0:02:04]} 32. f3 {[%clk 0:01:33]}  fxe4 {[%clk 0:01:54]} 33. fxe4 {[%clk 0:01:34]}  Na2 {[%clk 0:01:54]} 34. Rd1 {[%clk 0:01:12]}  Rb5 {[%clk 0:01:25]} 35. Rxd3 {[%clk 0:01:08]}  Nc1 {[%clk 0:01:25]} 36. Re3 {[%clk 0:01:03]}  Nxb3 {[%clk 0:01:24]} 37. Kg2 {[%clk 0:01:01]}  Nd4 {[%clk 0:01:24]} 38. Rd3 {[%clk 0:00:57]}  Ne2 {[%clk 0:01:21]} 39. Kf3 {[%clk 0:00:51]}  Ng1+ {[%clk 0:01:19]} 40. Kg2 {[%clk 0:00:51]}  Rb1 {[%clk 0:01:17]} 41. Nd2 {[%clk 0:00:48]}  Rd1 {[%clk 0:01:16]} 42. h4 {[%clk 0:00:43]}  Kf6 {[%clk 0:00:44]} 43. Kf2 {[%clk 0:00:37]}  h5 {[%clk 0:00:36]} 44. Rd4 {[%clk 0:00:33]}  Ke5 {[%clk 0:00:25]} 45. Nf3+ {[%clk 0:00:30]}  Nxf3 {[%clk 0:00:25]} 46. Rxd1 {[%clk 0:00:31]}  Kxe4 {[%clk 0:00:26]} 47. Ra1 {[%clk 0:00:25]}  Ne5 {[%clk 0:00:24]} 48. Ra7 {[%clk 0:00:25]}  Kxd5 {[%clk 0:00:20]} 49. Rxe7 {[%clk 0:00:25]}  Ke4 {[%clk 0:00:21]} 50. Re6 {[%clk 0:00:19]}  d5 {[%clk 0:00:21]} 51. Ke2 {[%clk 0:00:20]}  d4 {[%clk 0:00:20]} 52. Ra6 {[%clk 0:00:19]}  d3+ {[%clk 0:00:19]} 53. Kd2 {[%clk 0:00:20]}  Kf3 {[%clk 0:00:17]} 54. Re6 {[%clk 0:00:20]}  Ke4 {[%clk 0:00:17]} 55. Re8 {[%clk 0:00:20]}  Kd4 {[%clk 0:00:15]} 56. Rf8 {[%clk 0:00:19]}  Nc4+ {[%clk 0:00:15]} 57. Kd1 {[%clk 0:00:19]}  Kc3 {[%clk 0:00:13]} 58. Rc8 {[%clk 0:00:17]}  d2 {[%clk 0:00:13]} 59. Ke2 {[%clk 0:00:07]}  Kd4 {[%clk 0:00:13]} 60. Rd8+ {[%clk 0:00:07]}  Ke4 {[%clk 0:00:13]} 61. Re8+ {[%clk 0:00:08]}  Kf5 {[%clk 0:00:12]} 62. Rc8 {[%clk 0:00:07]}  Nd6 {[%clk 0:00:10]} 63. Rc6 {[%clk 0:00:06]}  Ne4 {[%clk 0:00:10]} 64. Rc4 {[%clk 0:00:07]}  Ke5 {[%clk 0:00:06]} 65. Ra4 {[%clk 0:00:06]}  Nc3+ {[%clk 0:00:06]} 66. Kxd2 {[%clk 0:00:07]}  Nxa4 {[%clk 0:00:07]} 67. Ke3 {[%clk 0:00:08]}  Nc5 {[%clk 0:00:07]} 68. Kf3 {[%clk 0:00:09]}  Kf5 {[%clk 0:00:08]} 69. Kg2 {[%clk 0:00:09]}  Kg4 {[%clk 0:00:07]} 70. Kh2 {[%clk 0:00:10]}  Ne4 {[%clk 0:00:07]} 71. Kg2 {[%clk 0:00:11]}  Nxg3 {[%clk 0:00:08]} 72. Kh2 {[%clk 0:00:12]}  Kxh4 {[%clk 0:00:08]} 73. Kg2 {[%clk 0:00:13]}  Kg4 {[%clk 0:00:09]} 74. Kh2 {[%clk 0:00:14]}  h4 {[%clk 0:00:10]} 75. Kg2 {[%clk 0:00:14]}  h3+ {[%clk 0:00:11]} 76. Kh2 {[%clk 0:00:15]}  Kh4 {[%clk 0:00:11]} 77. Kg1 {[%clk 0:00:16]}  Nh5 {[%clk 0:00:12]} 78. Kh2 {[%clk 0:00:17]}  g5 {[%clk 0:00:12]} 79. Kg1 {[%clk 0:00:18]}  g4 {[%clk 0:00:13]} 80. Kh2 {[%clk 0:00:19]}  g3+ {[%clk 0:00:14]} 81. Kg1 {[%clk 0:00:20]}  Kg4 {[%clk 0:00:15]} 82. Kh1 {[%clk 0:00:20]}  Kf4 {[%clk 0:00:16]} 83. Kg1 {[%clk 0:00:21]}  Ke4 {[%clk 0:00:17]} 84. Kh1 {[%clk 0:00:22]}  Kd4 {[%clk 0:00:17]} 85. Kg1 {[%clk 0:00:23]}  Kd5 {[%clk 0:00:18]} 86. Kh1 {[%clk 0:00:24]}  Kc5 {[%clk 0:00:19]} 87. Kg1 {[%clk 0:00:25]}  Kc6 {[%clk 0:00:20]} 88. Kh1 {[%clk 0:00:26]}  Kb6 {[%clk 0:00:21]} 89. Kg1 {[%clk 0:00:27]}  Kb7 {[%clk 0:00:22]} 90. Kh1 {[%clk 0:00:27]}  Ka7 {[%clk 0:00:23]} 91. Kg1 {[%clk 0:00:28]}  Ka6 {[%clk 0:00:24]} 92. Kh1 {[%clk 0:00:29]}  Ka5 {[%clk 0:00:25]} 93. Kg1 {[%clk 0:00:30]}  Ka4 {[%clk 0:00:26]} 94. Kh1 {[%clk 0:00:31]}  Kb3 {[%clk 0:00:26]} 95. Kg1 {[%clk 0:00:32]}  Kc2 {[%clk 0:00:27]} 96. Kh1 {[%clk 0:00:33]}  Kd3 {[%clk 0:00:28]} 97. Kg1 {[%clk 0:00:34]}  Ke3 {[%clk 0:00:29]} 98. Kh1 {[%clk 0:00:35]}  Kf3 {[%clk 0:00:30]} 99. Kg1 {[%clk 0:00:36]}  g2 {[%clk 0:00:30]} 100. Kh2 {[%clk 0:00:36]}  Kf2 {[%clk 0:00:29]} 101. Kxh3 {[%clk 0:00:37]}  g1=Q {[%clk 0:00:29]} 102. Kh4 {[%clk 0:00:38]}  Qg6 {[%clk 0:00:30]} 103. Kh3 {[%clk 0:00:38]}  Qg1 {[%clk 0:00:30]} 104. Kh4 {[%clk 0:00:39]}  Qg6 {[%clk 0:00:30]} 105. Kh3 {[%clk 0:00:39]}  Qg3# {[%clk 0:00:31]} 0-1


[Site "https://www.chess.com"]